bitfinex/quotes_BTCUSD_20251104
["timestamp","ask_amount","ask_price","bid_price","bid_amount"]
[1762266805616,0.19436749,103430.0,103420.0,0.02790972]
[1762266805969,0.19436749,103430.0,103420.0,0.22129591]
[1762266806165,0.19436749,103430.0,103420.0,0.02790972]
[1762266806166,0.19636749,103430.0,103420.0,0.02790972]
[1762266806573,0.19636749,103430.0,103420.0,0.00472972]
[1762266806797,0.001,103430.0,103420.0,0.00472972]
[1762266807005,0.001,103430.0,103420.0,0.33611359]
[1762266807229,0.19436749,103430.0,103420.0,0.12338879]
[1762266807428,0.19436749,103430.0,103420.0,0.00072972]
[1762266808046,0.001,103430.0,103420.0,0.00072972]
[1762266808283,0.19735658,103430.0,103420.0,0.00072972]
[1762266808695,0.22745658,103430.0,103420.0,0.00072972]
[1762266808913,0.03408909,103430.0,103420.0,0.00072972]
[1762266809126,0.22945658,103430.0,103420.0,0.00072972]
[1762266809538,0.07136909,103430.0,103420.0,0.00072972]
[1762266809738,0.22845658,103430.0,103420.0,0.00072972]
[1762266810213,0.03608909,103430.0,103420.0,0.19411591]
[1762266810413,0.22945658,103430.0,103420.0,0.00072972]
[1762266810629,0.22645658,103430.0,103420.0,0.00072972]
[1762266810851,0.61029194,103430.0,103420.0,0.00072972]
[1762266811067,1.19042354,103430.0,103420.0,0.00072972]
[1762266811278,0.20610256,103400.0,103380.0,0.19746047]
[1762266811485,0.00298909,103380.0,103370.0,0.20784973]
[1762266811720,0.00298909,103390.0,103380.0,0.22071101]
[1762266811923,0.00347626,103400.0,103390.0,0.1974423]
[1762266812143,0.1969009,103400.0,103380.0,0.19745994]
[1762266812351,0.00298909,103390.0,103380.0,0.004]
[1762266812540,0.00298909,103390.0,103380.0,0.19746101]
[1762266812868,0.19643139,103390.0,103380.0,0.004]
[1762266813073,0.19643139,103390.0,103380.0,0.008]
[1762266813305,0.19643139,103390.0,103380.0,0.20146101]
[1762266813306,0.00298909,103390.0,103380.0,0.20146101]
[1762266813511,0.00347626,103400.0,103390.0,0.1934423]
[1762266813713,0.00347626,103400.0,103390.0,0.2206923]
[1762266813714,0.00447626,103400.0,103390.0,0.2206923]
[1762266813928,0.00347626,103400.0,103390.0,0.31617137]
[1762266814163,0.00347626,103400.0,103390.0,0.09947907]
[1762266814365,0.00347626,103400.0,103390.0,0.1974423]
[1762266814923,0.19689985,103400.0,103390.0,0.004]
[1762266815544,0.00298909,103390.0,103380.0,0.19746101]
[1762266815726,0.00298909,103390.0,103380.0,0.20146101]
[1762266815926,0.1934423,103390.0,103380.0,0.20146101]
[1762266816133,0.00148717,103400.0,103390.0,0.1974423]
[1762266816333,0.00447626,103400.0,103390.0,0.02725]
[1762266816535,0.1934423,103390.0,103380.0,0.008]
[1762266816770,0.19643139,103390.0,103380.0,0.19746101]
[1762266816972,0.00398909,103390.0,103380.0,0.19746101]
[1762266817171,0.00398909,103390.0,103380.0,0.235026]
[1762266817377,0.19743139,103390.0,103380.0,0.00497181]
[1762266817577,0.00398909,103390.0,103380.0,0.28210839]
[1762266817779,0.00398909,103390.0,103380.0,0.26920282]
[1762266817780,0.001,103390.0,103380.0,0.26920282]
[1762266817978,0.00048717,103400.0,103390.0,0.5334423]
[1762266818201,0.00048717,103400.0,103390.0,0.65617137]
[1762266818999,0.19689985,103400.0,103390.0,0.11872907]
[1762266819323,0.19789985,103400.0,103390.0,0.004]
[1762266820060,0.1934423,103390.0,103380.0,0.004]
[1762266820226,0.19643139,103390.0,103380.0,0.004]
[1762266820404,0.00298909,103390.0,103380.0,0.20246101]
[1762266820607,0.00447626,103400.0,103380.0,0.22571101]
[1762266820811,0.19790092,103400.0,103390.0,0.02725]
[1762266821125,0.19790092,103400.0,103390.0,0.004]
[1762266821328,0.19790092,103400.0,103390.0,0.03025]
[1762266821530,0.19790092,103400.0,103390.0,0.003]
[1762266821932,0.19690092,103400.0,103390.0,0.003]
[1762266822926,0.19790092,103400.0,103390.0,0.003]
[1762266823514,0.00447626,103400.0,103390.0,0.22042109]
[1762266823663,0.00447626,103400.0,103390.0,0.22442109]
[1762266824018,0.19789985,103400.0,103390.0,0.03097879]
[1762266824213,0.19789985,103400.0,103390.0,0.00772879]
[1762266825023,0.19789985,103400.0,103390.0,0.03225879]
[1762266825024,0.00148717,103400.0,103390.0,0.03225879]
[1762266825222,0.19789985,103400.0,103390.0,0.03225879]
[1762266825434,0.19789985,103400.0,103390.0,0.12773786]
[1762266825640,0.19789985,103400.0,103390.0,0.00772879]
[1762266825841,0.8281874,103400.0,103390.0,0.00372879]
[1762266826049,0.8618654,103400.0,103390.0,0.00372879]
[1762266826255,0.8618654,103400.0,103390.0,0.00072879]
[1762266826589,0.8748654,103400.0,103390.0,0.00172879]
[1762266826830,0.87187631,103400.0,103390.0,0.00172879]
[1762266827014,0.02634426,103400.0,103390.0,0.00172879]
[1762266827235,0.32594892,103400.0,103390.0,0.00072879]
[1762266827429,0.33481816,103400.0,103390.0,0.00072879]
[1762266827649,0.30224816,103400.0,103390.0,0.00172879]
[1762266827867,0.00148717,103400.0,103390.0,0.23520109]
[1762266828014,0.00148717,103400.0,103390.0,0.27868109]
[1762266828194,0.00148717,103400.0,103390.0,0.37416016]
[1762266828392,0.00148717,103400.0,103390.0,0.39816016]
[1762266828622,0.00148717,103400.0,103390.0,0.37816016]
[1762266829101,0.00148717,103400.0,103390.0,0.37716016]
[1762266829449,0.00048717,103400.0,103390.0,0.37716016]
[1762266829682,0.19691076,103400.0,103390.0,0.37916016]
[1762266829896,0.00048717,103400.0,103390.0,0.37816016]
[1762266830102,0.00048717,103400.0,103390.0,0.37716016]
[1762266830304,0.00148717,103400.0,103390.0,0.38116016]
[1762266830482,0.00148717,103400.0,103390.0,0.38616016]
[1762266830894,0.00148717,103400.0,103390.0,0.38116016]
[1762266831230,0.00648717,103400.0,103390.0,0.38116016]
[1762266831959,0.03628717,103400.0,103390.0,0.38116016]
[1762266832105,0.03528717,103400.0,103390.0,0.37716016]
[1762266832914,0.22871076,103400.0,103390.0,0.37816016]
[1762266833121,0.22371076,103400.0,103390.0,0.34483016]
[1762266833319,0.03028717,103400.0,103390.0,0.34983016]
[1762266833597,0.22471076,103400.0,103390.0,0.06490879]
[1762266833795,0.23660642,103400.0,103390.0,0.02522879]
[1762266833946,0.23660642,103400.0,103390.0,0.06490879]
[1762266834147,0.04019374,103400.0,103390.0,0.26866179]
[1762266834351,0.04019374,103400.0,103390.0,0.40115016]
[1762266834352,0.03128717,103400.0,103390.0,0.40115016]
[1762266834567,0.19338705,103420.0,103400.0,0.19341735]
[1762266834824,0.20528788,103420.0,103410.0,0.004]
[1762266835036,0.20229879,103420.0,103410.0,0.04368]
[1762266835245,0.01190083,103420.0,103410.0,0.23708489]
[1762266835463,0.20307228,103440.0,103430.0,0.004]
[1762266835678,0.20307228,103440.0,103430.0,0.02653]
[1762266835679,0.20231782,103440.0,103430.0,0.02653]
[1762266835889,0.00891298,103440.0,103430.0,0.21989749]
[1762266836064,0.19446511,103450.0,103440.0,0.004]
[1762266836198,0.20651238,103450.0,103440.0,0.004]
[1762266836400,0.1933488,103440.0,103430.0,0.02453]
[1762266836600,0.20651238,103450.0,103440.0,0.2218788]
[1762266836601,0.00128069,103450.0,103440.0,0.2218788]
[1762266836905,0.1946108,103450.0,103440.0,0.02853]
[1762266837105,0.20651177,103450.0,103410.0,0.3015542]
[1762266837282,0.19636704,103440.0,103420.0,0.26519619]
[1762266837444,0.19636704,103440.0,103430.0,0.004]
[1762266837648,0.19633789,103440.0,103430.0,0.19736749]
[1762266837963,0.19633789,103440.0,103430.0,0.02853]
[1762266838198,0.19633789,103440.0,103430.0,0.004]
[1762266838402,0.19338619,103420.0,103410.0,0.36065396]
[1762266838626,0.19338619,103420.0,103410.0,0.36465396]
[1762266838779,0.00298909,103430.0,103420.0,0.19738619]
[1762266839120,0.19635658,103430.0,103420.0,0.04368]
[1762266839277,0.74387373,103430.0,103420.0,0.004]
[1762266839487,0.19339983,103420.0,103410.0,0.004]
[1762266839686,0.74390607,103420.0,103410.0,0.005]
[1762266839889,0.74390607,103420.0,103410.0,0.001]
[1762266840089,0.74390607,103420.0,103410.0,0.00024288]
[1762266840297,0.79423145,103420.0,103410.0,0.00024288]
[1762266840499,0.81594731,103420.0,103410.0,0.00024288]
[1762266840896,0.77033808,103420.0,103410.0,0.00024288]
[1762266841103,0.74390607,103420.0,103410.0,0.02877288]
[1762266841301,0.76871607,103420.0,103410.0,0.00024288]
[1762266841500,0.77762609,103420.0,103410.0,0.00224288]
[1762266841755,0.79815154,103420.0,103410.0,0.00224288]
[1762266841983,0.19638892,103420.0,103410.0,0.00224288]
[1762266842164,0.74390607,103420.0,103410.0,0.00224288]
[1762266842553,0.19637528,103420.0,103410.0,0.00224288]
[1762266842828,0.19637528,103420.0,103410.0,0.00824288]
[1762266842829,0.74389243,103420.0,103410.0,0.00824288]
[1762266843046,0.74389243,103420.0,103410.0,0.00224288]
[1762266843506,0.55150624,103420.0,103410.0,0.00024288]
[1762266843667,1.16380938,103420.0,103410.0,0.00024288]
[1762266843867,1.16380938,103420.0,103380.0,8e-05]
[1762266843868,0.19643139,103390.0,103380.0,8e-05]
[1762266844066,0.75617854,103390.0,103380.0,8e-05]
[1762266844269,0.79759854,103390.0,103380.0,8e-05]
[1762266844433,0.55050624,103390.0,103380.0,8e-05]
[1762266844637,0.74394854,103390.0,103380.0,8e-05]
[1762266845214,0.74494854,103390.0,103380.0,0.00056717]
[1762266845423,0.78636854,103390.0,103380.0,0.00056717]
[1762266845627,0.74494854,103390.0,103380.0,0.00056717]
[1762266845834,0.76975854,103390.0,103380.0,0.00056717]
[1762266846051,0.78636854,103390.0,103380.0,0.00056717]
[1762266846269,1.76936476,103390.0,103380.0,0.00156717]
[1762266846475,1.78986959,103390.0,103380.0,0.00156717]
[1762266846678,0.35483529,103390.0,103380.0,0.00156717]
[1762266846893,0.76155854,103390.0,103380.0,0.00156717]
[1762266847137,0.88084761,103390.0,103380.0,0.00056717]
[1762266847358,0.88184761,103390.0,103380.0,0.00056717]
[1762266847571,1.09802339,103370.0,103360.0,0.40261708]
[1762266847775,1.11074026,103370.0,103360.0,0.40261708]
[1762266847979,0.58803311,103370.0,103360.0,0.40261708]
[1762266848190,0.2310066,103370.0,103360.0,0.40261708]
[1762266848393,0.56023402,103370.0,103360.0,0.40261708]
[1762266848603,0.00347596,103370.0,103360.0,0.63101553]
[1762266848815,0.00048687,103370.0,103360.0,0.67841553]
[1762266849228,0.00048687,103370.0,103360.0,0.68241553]
[1762266849832,0.00048687,103370.0,103360.0,1.02241553]
[1762266850035,0.29853456,103420.0,103380.0,0.20313406]
[1762266850215,0.74092204,103410.0,103400.0,0.19742285]
[1762266850436,0.19340489,103410.0,103400.0,0.004]
[1762266850639,0.54751715,103410.0,103400.0,0.004]
[1762266850848,0.00298909,103410.0,103400.0,0.19742359]
[1762266851057,0.00298909,103410.0,103400.0,0.02853]
[1762266851058,0.19639398,103410.0,103400.0,0.02853]
[1762266851670,0.00898909,103410.0,103400.0,0.19342359]
[1762266851821,0.00898909,103410.0,103400.0,0.28089007]
[1762266852047,0.006,103410.0,103400.0,0.70479266]
[1762266852438,0.00298909,103430.0,103420.0,0.19738619]
[1762266852643,0.00298909,103430.0,103420.0,0.34022526]
[1762266852813,0.00298909,103430.0,103420.0,0.36475526]
[1762266853433,0.19635658,103430.0,103420.0,0.36475526]
[1762266853660,0.19635658,103430.0,103420.0,0.09947907]
[1762266853841,0.19635658,103430.0,103420.0,0.29286526]
[1762266854062,0.00298909,103430.0,103420.0,0.31739526]
[1762266854272,0.00113469,103440.0,103430.0,0.19336749]
[1762266854474,0.19747258,103440.0,103430.0,0.02853]
[1762266854675,0.19747258,103440.0,103430.0,0.07585]
[1762266854849,0.00412378,103440.0,103430.0,0.24468749]
[1762266855054,0.19747258,103440.0,103430.0,0.24468749]
[1762266855256,0.19747258,103440.0,103430.0,0.26862749]
[1762266855460,0.19747258,103440.0,103430.0,0.07526]
[1762266855663,0.19747258,103440.0,103430.0,0.004]
[1762266855930,0.00298909,103410.0,103400.0,0.09572199]
[1762266856142,0.19637528,103420.0,103400.0,0.00024292]
[1762266856367,0.19637528,103420.0,103400.0,0.02818292]
[1762266856368,0.19639398,103410.0,103400.0,0.02818292]
[1762266856581,0.19639398,103410.0,103400.0,0.00424292]
[1762266856797,0.74391113,103410.0,103400.0,0.00424292]
[1762266857019,0.8635102,103410.0,103400.0,0.00024292]
[1762266857202,0.8393902,103410.0,103400.0,0.00024292]
[1762266857476,0.19340489,103410.0,103400.0,0.00024292]
[1762266857691,0.74090334,103420.0,103410.0,0.004]
[1762266857923,0.19637528,103420.0,103410.0,0.004]
[1762266858164,0.19338619,103420.0,103410.0,0.02794]
[1762266858421,0.74389243,103420.0,103410.0,0.004]
[1762266858643,0.19637528,103420.0,103410.0,0.004]
[1762266858867,0.19637528,103420.0,103410.0,0.19740489]
[1762266859100,0.00298909,103420.0,103410.0,0.02794]
[1762266859317,0.19637528,103420.0,103410.0,0.02794]
[1762266859519,0.19637528,103420.0,103410.0,0.004]
[1762266859718,1.19737528,103420.0,103410.0,0.004]
[1762266859920,1.74389243,103420.0,103410.0,0.004]
[1762266860590,1.81436302,103420.0,103410.0,0.02794]
[1762266860785,1.61798774,103420.0,103410.0,0.22134489]
[1762266860993,1.19837528,103420.0,103410.0,0.22134489]
[1762266861202,1.002,103420.0,103410.0,0.22134489]
[1762266861422,1.002,103420.0,103410.0,0.31682396]
[1762266861633,0.00412378,103440.0,103430.0,0.19736749]
[1762266861848,0.00113469,103440.0,103430.0,0.34012656]
[1762266862061,0.00113469,103440.0,103430.0,0.70406656]
[1762266862949,0.19448349,103440.0,103430.0,0.36402656]
[1762266863160,0.00113469,103440.0,103430.0,0.36402656]
[1762266863381,0.00113469,103440.0,103420.0,0.004]
[1762266863382,0.19337597,103430.0,103420.0,0.004]
[1762266863610,0.19636506,103430.0,103410.0,0.36310298]
[1762266863875,0.19636506,103430.0,103420.0,0.02794]
[1762266864118,0.19636506,103430.0,103420.0,0.004]
[1762266864613,0.20714002,103440.0,103430.0,0.19736749]
[1762266864874,0.00113469,103440.0,103430.0,0.24460749]
[1762266865085,0.00113469,103440.0,103430.0,0.36402656]
[1762266865086,0.00412378,103440.0,103430.0,0.36402656]
[1762266865300,0.00113469,103440.0,103430.0,0.36402656]
[1762266865744,0.19747258,103440.0,103430.0,0.12341907]
[1762266865970,0.19448349,103440.0,103430.0,0.31678656]
[1762266866174,0.19448349,103440.0,103430.0,0.12341907]
[1762266866383,0.19747258,103440.0,103430.0,0.004]
[1762266866598,0.19747258,103440.0,103430.0,0.005]
[1762266867022,0.19448349,103440.0,103430.0,0.005]
[1762266867288,0.19747258,103440.0,103430.0,0.001]
[1762266867480,0.19747258,103440.0,103430.0,0.002]
[1762266868130,0.31707165,103440.0,103430.0,0.001]
[1762266868336,0.33227165,103440.0,103430.0,0.001]
[1762266868558,0.19338619,103420.0,103410.0,0.004]
[1762266868873,0.19338619,103420.0,103410.0,0.00391038]
[1762266868874,0.19637528,103420.0,103410.0,0.00391038]
[1762266869081,0.29185435,103420.0,103410.0,0.00391038]
[1762266869292,0.29185435,103420.0,103400.0,0.004]
[1762266869293,0.81438172,103410.0,103400.0,0.004]
[1762266869499,0.19641268,103400.0,103390.0,0.01515749]
[1762266869717,0.00298909,103400.0,103390.0,0.24340291]
[1762266869899,0.00298909,103410.0,103400.0,0.19342065]
[1762266870147,0.00298909,103410.0,103400.0,0.19732551]
[1762266870352,0.81137459,103420.0,103400.0,0.23342551]
[1762266870561,0.00298909,103420.0,103410.0,0.23350489]
[1762266870768,0.19451013,103430.0,103420.0,0.004]
[1762266870769,0.19749141,103430.0,103420.0,0.004]
[1762266870975,0.19450232,103430.0,103420.0,0.004]
[1762266871185,0.00113483,103430.0,103420.0,0.23637619]
[1762266871393,0.00113483,103430.0,103420.0,0.28353619]
[1762266871830,0.00113483,103430.0,103420.0,0.23637619]
[1762266872048,0.19331142,103460.0,103430.0,0.20300066]
[1762266872258,0.19331142,103460.0,103440.0,0.35154854]
[1762266872259,0.00298909,103450.0,103440.0,0.35154854]
[1762266872476,0.00298909,103450.0,103440.0,0.36269126]
[1762266872915,0.19628183,103470.0,103460.0,0.004]
[1762266873339,0.00410615,103470.0,103460.0,0.22004142]
[1762266873547,0.00111706,103470.0,103460.0,0.22004142]
[1762266874203,0.00111706,103470.0,103460.0,0.24376049]
[1762266874413,0.00111706,103470.0,103460.0,0.24576049]
[1762266874622,0.00111706,103470.0,103460.0,0.24480049]
[1762266874835,0.00111706,103470.0,103460.0,0.24880049]
[1762266875050,0.27120713,103510.0,103500.0,0.004]
[1762266875258,0.27169421,103510.0,103500.0,0.004]
[1762266875464,0.07847617,103510.0,103500.0,0.004]
[1762266875709,0.07645735,103510.0,103500.0,0.21996671]
[1762266875899,0.07645735,103510.0,103500.0,0.02673]
[1762266876107,0.07944644,103510.0,103500.0,0.31544578]
[1762266876342,0.27266448,103510.0,103500.0,0.12220907]
[1762266876577,0.27266448,103510.0,103500.0,0.004]
[1762266876785,0.27266448,103510.0,103500.0,0.02673]
[1762266877199,0.27266448,103510.0,103500.0,0.31644578]
[1762266877200,0.07645735,103510.0,103500.0,0.31644578]
[1762266877453,0.07944644,103510.0,103500.0,0.12320907]
[1762266877665,0.27266448,103510.0,103500.0,0.005]
[1762266878080,0.39173355,103510.0,103500.0,0.001]
[1762266878486,0.36814355,103510.0,103500.0,0.001]
[1762266878689,1.00972129,103510.0,103500.0,0.00104]
[1762266879100,1.00972129,103510.0,103500.0,0.00108]
[1762266879326,0.89065222,103510.0,103500.0,0.00108]
[1762266879533,0.88766313,103510.0,103500.0,0.00012]
[1762266879742,0.89365222,103510.0,103500.0,0.00412]
[1762266879965,0.07945735,103510.0,103500.0,0.00412]
[1762266880182,0.27267539,103510.0,103500.0,0.02685]
[1762266880409,0.27566448,103510.0,103500.0,0.00412]
[1762266880617,0.27266448,103510.0,103500.0,0.00412]
[1762266880828,0.29625448,103510.0,103500.0,0.00412]
[1762266881054,0.29825448,103510.0,103500.0,0.00012]
[1762266881263,0.27466448,103510.0,103500.0,0.00412]
[1762266881688,0.39373355,103510.0,103500.0,0.00412]
[1762266881897,0.39373355,103510.0,103500.0,0.00012]
[1762266882108,1.01172129,103510.0,103500.0,0.00312]
[1762266882328,1.00972129,103510.0,103500.0,0.00312]
[1762266882527,0.93861166,103510.0,103500.0,0.00312]
[1762266882803,0.93862257,103510.0,103500.0,2.286e-05]
[1762266883014,0.94161166,103510.0,103500.0,2.286e-05]
[1762266883236,1.28161166,103510.0,103500.0,2.286e-05]
[1762266883446,0.74360731,103510.0,103500.0,2.286e-05]
[1762266883656,0.8195535,103510.0,103500.0,2.286e-05]
[1762266883882,0.07945735,103510.0,103500.0,0.02275286]
[1762266884107,0.07945735,103510.0,103500.0,0.31546864]
[1762266884312,0.08545735,103510.0,103500.0,0.31546864]
[1762266884730,0.08545735,103510.0,103500.0,0.21998957]
[1762266884731,0.07945735,103510.0,103500.0,0.21998957]
[1762266884939,0.07945735,103510.0,103500.0,0.31546864]
[1762266885179,0.07945735,103510.0,103500.0,0.31846864]
[1762266885614,0.07645735,103510.0,103500.0,0.31846864]
[1762266886059,0.0004,103520.0,103510.0,0.19321804]
[1762266886274,0.19315101,103550.0,103530.0,0.19717062]
[1762266886490,0.00298909,103540.0,103530.0,0.33968969]
[1762266886709,0.00014614,103550.0,103540.0,0.03982]
[1762266886917,0.00014614,103550.0,103540.0,0.23298206]
[1762266887121,0.00313523,103550.0,103540.0,0.23298206]
[1762266887326,0.00014614,103550.0,103540.0,0.57298206]
[1762266887531,0.00111586,103550.0,103540.0,0.56898206]
[1762266887742,0.00111586,103550.0,103540.0,0.57298206]
[1762266888196,0.00511586,103550.0,103540.0,0.61998206]
[1762266888408,0.00511586,103550.0,103540.0,0.37982]
[1762266888409,0.19825926,103550.0,103540.0,0.37982]
[1762266888624,0.00289974,103540.0,103530.0,0.19318072]
[1762266888831,0.00289974,103540.0,103530.0,0.22136072]
[1762266889037,0.00314614,103550.0,103540.0,0.20116206]
[1762266889255,0.00314614,103550.0,103540.0,0.27238206]
[1762266889459,0.00604588,103550.0,103540.0,0.27238206]
[1762266889662,0.00314614,103550.0,103540.0,0.26838206]
[1762266889871,0.00314614,103550.0,103540.0,0.36386113]
[1762266890078,0.19628954,103550.0,103540.0,0.17069907]
[1762266890284,0.40242009,103580.0,103570.0,0.004]
[1762266890493,0.40242009,103580.0,103570.0,0.27992611]
[1762266890738,1.14180428,103580.0,103570.0,0.04696]
[1762266890946,0.19600585,103570.0,103560.0,0.004]
[1762266891175,0.74228393,103570.0,103560.0,0.24408475]
[1762266891412,0.00289974,103570.0,103560.0,0.36374382]
[1762266891683,0.20933135,103580.0,103570.0,0.19710611]
[1762266891887,0.21043161,103580.0,103570.0,0.22128611]
[1762266892101,0.21043161,103580.0,103570.0,0.56128611]
[1762266892314,0.20643161,103580.0,103570.0,0.56128611]
[1762266892531,0.20843161,103580.0,103570.0,0.56128611]
[1762266892804,0.23343161,103580.0,103570.0,0.55728611]
[1762266893027,0.23143161,103580.0,103570.0,0.56128611]
[1762266893464,0.23143161,103580.0,103570.0,0.60820611]
[1762266893896,0.23143161,103580.0,103570.0,0.8289761]
[1762266893897,0.02416161,103580.0,103570.0,0.8289761]
[1762266894136,0.02416161,103580.0,103570.0,0.61897611]
[1762266894345,0.02416161,103580.0,103570.0,0.61893611]
[1762266894556,0.02585813,103580.0,103570.0,0.61893611]
[1762266895389,0.02585813,103580.0,103570.0,0.62093611]
[1762266895632,0.21894559,103580.0,103570.0,0.38095]
[1762266895869,0.21894559,103580.0,103570.0,0.04295]
[1762266896079,0.96122952,103580.0,103570.0,0.01877]
[1762266896304,1.31368952,103580.0,103570.0,0.008]
[1762266896537,1.33650952,103580.0,103570.0,0.008]
[1762266896742,1.33650952,103580.0,103570.0,0.004]
[1762266896949,1.33650952,103580.0,103570.0,0.002]
[1762266897161,0.19600585,103570.0,103560.0,0.00416]
[1762266897374,1.39368911,103570.0,103560.0,0.00016]
[1762266897873,1.39368911,103570.0,103560.0,1e-08]
[1762266898075,0.65430492,103570.0,103560.0,1e-08]
[1762266898300,1.39368911,103570.0,103560.0,1e-08]
[1762266898554,1.20908991,103570.0,103560.0,1e-08]
[1762266898820,1.18337017,103570.0,103560.0,1e-08]
[1762266899080,1.20908991,103570.0,103560.0,1e-08]
[1762266899340,1.21108991,103570.0,103560.0,1e-08]
[1762266899813,4.22794288,103570.0,103560.0,1e-08]
[1762266900033,4.29303743,103570.0,103560.0,1e-08]
[1762266900423,4.30403742,103570.0,103560.0,1e-08]
[1762266900681,1.29403743,103570.0,103560.0,1e-08]
[1762266900895,1.25713769,103570.0,103560.0,1e-08]
[1762266901108,1.25603743,103570.0,103560.0,1e-08]
[1762266901322,4.29003743,103570.0,103560.0,1e-08]
[1762266901538,4.30003742,103570.0,103560.0,1e-08]
[1762266901749,4.31103742,103570.0,103560.0,1e-08]
[1762266901966,0.53611778,103510.0,103500.0,0.00402286]
[1762266902188,0.53611778,103510.0,103500.0,0.004169]
[1762266902404,0.00289974,103510.0,103500.0,0.028349]
[1762266902622,0.29833748,103530.0,103500.0,0.23690289]
[1762266902841,0.19609912,103520.0,103510.0,0.004]
[1762266903080,0.19319938,103520.0,103510.0,0.03895]
[1762266903534,0.19609912,103520.0,103510.0,0.004]
[1762266903755,0.19609912,103520.0,103500.0,0.000169]
[1762266903756,0.19611778,103510.0,103500.0,0.000169]
[1762266903988,0.19611778,103510.0,103500.0,0.024349]
[1762266904242,0.00289974,103510.0,103500.0,0.028349]
[1762266904457,0.00589974,103530.0,103510.0,0.34]
[1762266904682,0.29945145,103550.0,103520.0,0.06556434]
[1762266904891,0.19318072,103530.0,103520.0,0.09374434]
[1762266905149,0.19317849,103540.0,103530.0,0.02818]
[1762266905346,0.19058023,103530.0,103520.0,0.00777]
[1762266905552,0.19317849,103540.0,103520.0,0.0686757]
[1762266905775,0.19607823,103540.0,103530.0,0.004]
[1762266905982,0.1928498,103530.0,103520.0,0.05461]
[1762266906193,0.19187968,103530.0,103520.0,0.03195]
[1762266906405,0.19321451,103540.0,103520.0,0.01915002]
[1762266906616,0.00259588,103540.0,103530.0,0.02818]
[1762266906839,0.20255418,103560.0,103550.0,0.01081]
[1762266907074,0.20452057,103560.0,103550.0,0.01081]
[1762266907293,0.20134912,103560.0,103550.0,0.03899]
[1762266907512,0.20072911,103560.0,103550.0,0.01481]
[1762266907735,0.75519836,103560.0,103550.0,0.004]
[1762266908017,0.75487227,103560.0,103550.0,0.004]
[1762266908227,0.7503627,103560.0,103550.0,0.005]
[1762266908449,0.75938194,103560.0,103550.0,0.005]
[1762266908661,0.76657562,103560.0,103550.0,0.005]
[1762266908878,0.76626219,103560.0,103550.0,0.005]
[1762266909090,0.76308562,103560.0,103550.0,0.005]
[1762266909318,1.10214445,103560.0,103550.0,0.005]
[1762266909522,1.10214445,103560.0,103550.0,0.001]
[1762266909523,1.1014998,103560.0,103550.0,0.001]
[1762266909727,1.13946511,103560.0,103550.0,0.001]
[1762266909934,1.15944606,103560.0,103550.0,0.001]
[1762266910139,1.15913368,103560.0,103550.0,0.001]
[1762266910348,1.15850419,103560.0,103550.0,0.001]
[1762266910563,1.1578603,103560.0,103550.0,0.001]
[1762266910983,1.15722692,103560.0,103550.0,0.001]
[1762266911190,1.15397846,103560.0,103550.0,0.001]
[1762266911407,0.19543811,103540.0,103530.0,0.004]
[1762266911592,0.19218629,103540.0,103530.0,0.004]
[1762266911841,0.19218629,103540.0,103530.0,0.02818]
[1762266912046,0.19575794,103540.0,103530.0,0.02418]
[1762266912262,0.1954285,103540.0,103530.0,0.02818]
[1762266912474,0.18959869,103540.0,103530.0,0.02818]
[1762266912684,0.74600984,103540.0,103530.0,0.004]
[1762266912890,0.1957766,103530.0,103520.0,0.01177]
[1762266913099,0.19482724,103530.0,103520.0,0.01177]
[1762266913323,0.19581392,103510.0,103500.0,2.286e-05]
[1762266913551,0.00228443,103510.0,103500.0,0.00402286]
[1762266913767,0.19330869,103510.0,103500.0,0.23805957]
[1762266913977,9.065e-05,103510.0,103500.0,0.23805957]
[1762266914181,0.54124781,103530.0,103500.0,0.23805957]
[1762266914182,0.54124781,103530.0,103510.0,0.19321804]
[1762266914424,0.74341396,103540.0,103520.0,0.02939]
[1762266914654,9.065e-05,103540.0,103530.0,0.23398072]
[1762266914867,0.19323409,103550.0,103530.0,0.0408]
[1762266915081,0.1931435,103550.0,103540.0,0.0504062]
[1762266915294,0.1931435,103550.0,103540.0,0.03109]
[1762266915751,0.19323415,103550.0,103540.0,0.03109]
[1762266916197,0.1931435,103550.0,103540.0,0.03109]
[1762266916408,0.19323415,103550.0,103540.0,0.04525906]
[1762266916623,0.19323415,103550.0,103540.0,0.03109]
[1762266916834,0.19323415,103550.0,103540.0,0.03509]
[1762266917043,0.19323415,103550.0,103540.0,0.00735]
[1762266917257,0.74898886,103550.0,103540.0,0.00404]
[1762266917682,1.13362318,103550.0,103540.0,0.00208]
[1762266917890,1.10961318,103550.0,103540.0,0.00208]
[1762266918370,1.13362318,103550.0,103540.0,0.00012]
[1762266918620,1.17198927,103550.0,103540.0,0.00012]
[1762266918826,1.14788862,103550.0,103540.0,0.00012]
[1762266919046,1.09781253,103550.0,103540.0,0.01143]
[1762266919274,1.08889821,103550.0,103540.0,0.01243]
[1762266919481,1.08898886,103550.0,103540.0,0.01243]
[1762266919699,1.08898886,103550.0,103540.0,0.00512]
[1762266919700,1.10952391,103550.0,103540.0,0.00512]
[1762266919919,1.10952391,103550.0,103540.0,0.00112]
[1762266919920,1.14262456,103550.0,103540.0,0.00112]
[1762266920352,1.13362456,103550.0,103540.0,0.00012]
[1762266920567,1.35739021,103550.0,103540.0,0.00012]
[1762266920789,1.33338021,103550.0,103540.0,0.00012]
[1762266921015,1.33428956,103550.0,103540.0,0.00012]
[1762266921227,1.33438021,103550.0,103540.0,0.00412]
[1762266921458,1.33438196,103550.0,103540.0,0.00412]
[1762266921700,1.37450196,103550.0,103540.0,0.00012]
[1762266922377,1.33438196,103550.0,103540.0,0.00012]
[1762266922632,1.37450196,103550.0,103540.0,0.00012]
[1762266923351,1.37650196,103550.0,103540.0,0.00012]
[1762266924052,1.33638196,103550.0,103540.0,0.00012]
[1762266924288,1.32467196,103550.0,103540.0,0.01589]
[1762266924499,0.09941305,103580.0,103570.0,0.004]
[1762266924726,0.09941305,103580.0,103550.0,0.06603434]
[1762266924727,0.19312475,103560.0,103550.0,0.06603434]
[1762266924951,0.1931434,103550.0,103540.0,0.03167]
[1762266925158,0.9333246,103550.0,103540.0,0.00789]
[1762266925370,0.9450346,103550.0,103540.0,0.00012]
[1762266925587,0.9450346,103550.0,103540.0,0.00412]
[1762266925802,1.3090446,103550.0,103540.0,0.00412]
[1762266926002,1.3090446,103550.0,103540.0,0.00012]
[1762266926401,1.3110446,103550.0,103540.0,0.00012]
[1762266926617,1.3100446,103550.0,103540.0,0.00012]
[1762266926795,1.3090446,103550.0,103540.0,0.00016]
[1762266927012,1.3090446,103550.0,103540.0,0.00116]